fUSD/lending_fUSD_20240420
["ID","MTS","AMOUNT","RATE_DAILY","PERIOD"]
[323016321,1713589840195,-617.0,0.00015068,2]
[323016322,1713589840205,-500.0,0.00015068,2]
[323016323,1713589840215,-500.0,0.00015068,2]
[323016324,1713589840225,-500.0,0.00015068,2]
[323016325,1713589840237,-1464.41,0.00015068,2]
[323016326,1713589840246,-1568.98,0.00015068,2]
[323016327,1713589840257,-500.0,0.00015068,2]
[323016328,1713589840268,-500.0,0.00015068,2]
[323016329,1713589840278,-500.0,0.00015068,2]
[323016330,1713589840288,-725.72,0.00015068,2]
[323016331,1713589840300,-500.0,0.00015068,2]
[323016332,1713589840308,-898.96,0.00015068,2]
[323016333,1713589840317,-150.0,0.00015068,2]
[323016334,1713589840327,-500.0,0.00015068,2]
[323016335,1713589840337,-882.39,0.00015068,2]
[323016336,1713589840347,-500.0,0.00015068,2]
[323016337,1713589840358,-497.10476252,0.00015068,2]
[323016338,1713589840367,-500.0,0.00015068,2]
[323016339,1713589840376,-555.1,0.00015068,2]
[323016340,1713589840385,-1252.51,0.00015068,2]
[323016341,1713589840394,-500.0,0.00015068,2]
[323016342,1713589840403,-500.0,0.00015068,2]
[323016343,1713589840413,-500.0,0.00015068,2]
[323016344,1713589840422,-500.0,0.00015068,2]
[323016345,1713589840431,-257.99218223,0.00015068,2]
[323016346,1713589840440,-1421.2,0.00015068,2]
[323016347,1713589840449,-500.0,0.00015068,2]
[323016348,1713589840462,-500.0,0.00015068,2]
[323016349,1713589840472,-500.0,0.00015068,2]
[323016350,1713589840481,-625.91,0.00015068,2]
[323016351,1713589840491,-861.69,0.00015068,2]
[323016352,1713589840500,-500.0,0.00015068,2]
[323016353,1713589840510,-500.0,0.00015068,2]
[323016354,1713589840519,-500.0,0.00015068,2]
[323016355,1713589840530,-500.0,0.00015068,2]
[323016356,1713589840539,-500.0,0.00015068,2]
[323016357,1713589840549,-1703.34,0.00015068,2]
[323016358,1713589840559,-869.47,0.00015068,2]
[323016359,1713589840568,-1321.61,0.00015068,2]
[323016360,1713589840579,-500.0,0.00015068,2]
[323016361,1713589840589,-500.0,0.00015068,2]
[323016362,1713589840598,-183.61222516,0.00015068,2]
[323016363,1713589840608,-500.0,0.00015068,2]
[323016364,1713589840618,-1015.39,0.00015068,2]
[323016365,1713589840628,-500.0,0.00015068,2]
[323016366,1713589840637,-500.0,0.00015068,2]
[323016367,1713589840647,-500.0,0.00015068,2]
[323016368,1713589840656,-500.0,0.00015068,2]
[323016369,1713589840666,-500.0,0.00015068,2]
[323016370,1713589840677,-1362.59,0.00015068,2]
[323016371,1713589840687,-900.62,0.00015068,2]
[323016372,1713589840697,-500.0,0.00015068,2]
[323016373,1713589840707,-500.0,0.00015068,2]
[323016374,1713589840716,-500.0,0.00015068,2]
[323016375,1713589840727,-555.88,0.00015068,2]
[323016376,1713589840737,-500.0,0.00015068,2]
[323016377,1713589840747,-983.38,0.00015068,2]
[323016378,1713589840757,-500.0,0.00015068,2]
[323016379,1713589840766,-580.58,0.00015068,2]
[323016380,1713589840775,-500.0,0.00015068,2]
[323016381,1713589840785,-677.7,0.00015068,2]
[323016382,1713589840794,-500.0,0.00015068,2]
[323016383,1713589840804,-500.0,0.00015068,2]
[323016384,1713589840814,-500.0,0.00015068,2]
[323016385,1713589840824,-500.0,0.00015068,2]
[323016386,1713589840838,-500.0,0.00015068,2]
[323016387,1713589840848,-1317.87,0.00015068,2]
[323016388,1713589840859,-500.0,0.00015068,2]
[323016389,1713589840870,-500.0,0.00015068,2]
[323016390,1713589840881,-500.0,0.00015068,2]
[323016391,1713589840891,-1160.84,0.00015068,2]
[323016392,1713589840903,-500.0,0.00015068,2]
[323016393,1713589840914,-500.0,0.00015068,2]
[323016394,1713589840924,-500.0,0.00015068,2]
[323016395,1713589840934,-500.0,0.00015068,2]
[323016396,1713589840945,-500.0,0.00015068,2]
[323016397,1713589840955,-1301.7,0.00015068,2]
[323016398,1713589840965,-500.0,0.00015068,2]
[323016399,1713589840976,-500.0,0.00015068,2]
[323016400,1713589840987,-629.05,0.00015068,2]
[323016401,1713589840998,-500.0,0.00015068,2]
[323016402,1713589841009,-500.0,0.00015068,2]
[323016403,1713589841020,-500.0,0.00015068,2]
[323016404,1713589841031,-500.0,0.00015068,2]
[323016405,1713589841041,-500.0,0.00015068,2]
[323016406,1713589841051,-900.73,0.00015068,2]
[323016407,1713589841062,-430.07,0.00015068,2]
[323016408,1713589841074,-500.0,0.00015068,2]
[323016409,1713589841085,-500.0,0.00015068,2]
[323016410,1713589841097,-500.0,0.00015068,2]
[323016411,1713589841446,-1385.88,0.00015068,2]
[323016412,1713589841462,-500.0,0.00015068,2]
[323016413,1713589841472,-500.0,0.00015068,2]
[323016414,1713589841482,-500.0,0.00015068,2]
[323016415,1713589841494,-500.0,0.00015068,2]
[323016416,1713589841504,-500.0,0.00015068,2]
[323016417,1713589841515,-500.0,0.00015068,2]
[323016418,1713589841525,-500.0,0.00015068,2]
[323016419,1713589841536,-661.14,0.00015068,2]
[323016420,1713589841546,-500.0,0.00015068,2]
[323016421,1713589841556,-562.68,0.00015068,2]
[323016422,1713589841566,-500.0,0.00015068,2]
[323016423,1713589841576,-500.0,0.00015068,2]
[323016424,1713589841586,-770.63,0.00015068,2]
[323016425,1713589841597,-500.0,0.00015068,2]
[323016426,1713589841606,-500.0,0.00015068,2]
[323016427,1713589841616,-500.0,0.00015068,2]
[323016428,1713589841626,-500.0,0.00015068,2]
[323016429,1713589841635,-500.0,0.00015068,2]
[323016430,1713589841645,-500.0,0.00015068,2]
[323016431,1713589841659,-1374.73,0.00015068,2]
[323016432,1713589841668,-622.14,0.00015068,2]
[323016433,1713589841678,-2339.77,0.00015068,2]
[323016434,1713589841687,-500.0,0.00015068,2]
[323016435,1713589841698,-776.31,0.00015068,2]
[323016436,1713589841707,-500.0,0.00015068,2]
[323016437,1713589841717,-1408.64,0.00015068,2]
[323016438,1713589841727,-1501.99,0.00015068,2]
[323016439,1713589841737,-500.0,0.00015068,2]
[323016440,1713589841746,-500.0,0.00015068,2]
[323016441,1713589841756,-500.0,0.00015068,2]
[323016442,1713589841765,-500.0,0.00015068,2]
[323016443,1713589841776,-500.0,0.00015068,2]
[323016444,1713589841785,-1092.0,0.00015068,2]
[323016445,1713589841794,-500.0,0.00015068,2]
[323016446,1713589841805,-500.0,0.00015068,2]
[323016447,1713589841814,-500.0,0.00015068,2]
[323016448,1713589841825,-500.0,0.00015068,2]
[323016449,1713589841837,-659.44,0.00015068,2]
[323016450,1713589841847,-953.41,0.00015068,2]
[323016451,1713589841859,-1316.69,0.00015068,2]
[323016452,1713589841869,-1741.8,0.00015068,2]
[323016453,1713589841880,-500.0,0.00015068,2]
[323016454,1713589841890,-500.0,0.00015068,2]
[323016455,1713589841900,-754.12,0.00015068,2]
[323016456,1713589841910,-500.0,0.00015068,2]
[323016457,1713589841921,-500.0,0.00015068,2]
[323016458,1713589841930,-2300.44,0.00015068,2]
[323016459,1713589841939,-1472.4,0.00015068,2]
[323016460,1713589841951,-1011.18,0.00015068,2]
[323016461,1713589841965,-500.0,0.00015068,2]
[323016462,1713589841977,-500.0,0.00015068,2]
[323016463,1713589841987,-500.0,0.00015068,2]
[323016464,1713589841999,-500.0,0.00015068,2]
[323016465,1713589842010,-500.0,0.00015068,2]
[323016466,1713589842023,-500.0,0.00015068,2]
[323016467,1713589842035,-500.0,0.00015068,2]
[323016468,1713589842048,-500.0,0.00015068,2]
[323016469,1713589842060,-549.84,0.00015068,2]
[323016470,1713589842070,-1406.46,0.00015068,2]
[323016471,1713589842081,-500.0,0.00015068,2]
[323016472,1713589842091,-1127.79,0.00015068,2]
[323016473,1713589842101,-874.74,0.00015068,2]
[323016474,1713589842112,-1287.79,0.00015068,2]
[323016475,1713589842122,-511.04,0.00015068,2]
[323016476,1713589842133,-500.0,0.00015068,2]
[323016477,1713589842143,-500.0,0.00015068,2]
[323016478,1713589842153,-500.0,0.00015068,2]
[323016479,1713589842163,-500.0,0.00015068,2]
[323016480,1713589842174,-3065.38,0.00015068,2]
[323016481,1713589842184,-500.0,0.00015068,2]
[323016482,1713589842194,-412.43503966,0.00015068,2]
[323016483,1713589842205,-2092.14,0.00015068,2]
[323016484,1713589842215,-525.43,0.00015068,2]
[323016485,1713589842226,-1007.26,0.00015068,2]
[323016486,1713589842237,-500.0,0.00015068,2]
[323016487,1713589842248,-828.84,0.00015068,2]
[323016488,1713589842259,-1343.76,0.00015068,2]
[323016489,1713589842270,-500.0,0.00015068,2]
[323016490,1713589842281,-500.0,0.00015068,2]
[323016491,1713589842293,-500.0,0.00015068,2]
[323016492,1713589842303,-584.77,0.00015068,2]
[323016493,1713589842313,-500.0,0.00015068,2]
[323016494,1713589842324,-500.0,0.00015068,2]
[323016495,1713589842335,-1373.91,0.00015068,2]
[323016496,1713589842345,-3645.68,0.00015068,2]
[323016497,1713589842354,-1757.6,0.00015068,2]
[323016498,1713589842365,-819.43,0.00015068,2]
[323016499,1713589842375,-1578.63,0.00015068,2]
[323016500,1713589842386,-500.0,0.00015068,2]
[323016501,1713589842395,-500.0,0.00015068,2]
[323016502,1713589842406,-163.33353209,0.00015068,2]
[323016503,1713589842416,-500.98414493,0.00015068,2]
[323016504,1713589842426,-678.52,0.00015068,2]
[323016505,1713589842436,-500.0,0.00015068,2]
[323016506,1713589842446,-500.0,0.00015068,2]
[323016507,1713589842460,-5348.0,0.00015068,2]
[323016508,1713589842470,-2173.09,0.00015068,2]
[323016509,1713589842480,-4154.82,0.00015068,2]
[323016510,1713589842490,-500.0,0.00015068,2]
[323016511,1713589842500,-500.0,0.00015068,2]
[323016512,1713589842510,-500.0,0.00015068,2]
[323016513,1713589842521,-720.68,0.00015068,2]
[323016514,1713589842531,-1063.82,0.00015068,2]
[323016515,1713589842542,-500.0,0.00015068,2]
[323016516,1713589842560,-500.0,0.00015068,2]
[323016517,1713589842572,-500.0,0.00015068,2]
[323016518,1713589842583,-8929.46,0.00015068,2]
[323016519,1713589842593,-2313.69,0.00015068,2]
[323016520,1713589842602,-516.80094974,0.00015068,2]
[323016521,1713589842613,-500.0,0.00015068,2]
[323016522,1713589842622,-1703.07,0.00015068,2]
[323016524,1713589842632,-500.0,0.00015068,2]
[323016525,1713589842642,-4913.03,0.00015068,2]
[323016526,1713589842651,-500.0,0.00015068,2]
[323016527,1713589842661,-500.0,0.00015068,2]
[323016528,1713589842670,-500.0,0.00015068,2]
[323016529,1713589842679,-500.0,0.00015068,2]
[323016530,1713589842689,-689.55,0.00015068,2]
[323016531,1713589842698,-1696.26,0.00015068,2]
[323016532,1713589842708,-1825.08,0.00015068,2]
[323016533,1713589842717,-500.0,0.00015068,2]
[323016534,1713589842726,-500.0,0.00015068,2]
[323016535,1713589842736,-2710.74,0.00015068,2]
[323016536,1713589842745,-2407.04,0.00015068,2]
[323016537,1713589842755,-546.15,0.00015068,2]
[323016538,1713589842764,-770.65,0.00015068,2]
[323016539,1713589842773,-500.0,0.00015068,2]
[323016540,1713589842783,-13397.96,0.00015068,2]
[323016541,1713589842792,-500.0,0.00015068,2]
[323016542,1713589842802,-4629.62,0.00015068,2]
[323016543,1713589842812,-607.78,0.00015068,2]
[323016545,1713589842822,-500.0,0.00015068,2]
[323016547,1713589842833,-18389.61,0.00015068,2]
[323016548,1713589842843,-500.0,0.00015068,2]
[323016550,1713589842852,-500.0,0.00015068,2]
[323016553,1713589842862,-685.61,0.00015068,2]
[323016556,1713589842871,-14338.36,0.00015068,2]
[323016559,1713589842881,-1371.9,0.00015068,2]
[323016561,1713589842891,-1246.62,0.00015068,2]
[323016565,1713589842900,-1145.46,0.00015068,2]
[323016567,1713589842909,-500.0,0.00015068,2]
[323016569,1713589842918,-155.0,0.00015068,2]
[323016570,1713589842928,-500.0,0.00015068,2]
[323016571,1713589842937,-1294.33,0.00015068,2]
[323016572,1713589842946,-500.0,0.00015068,2]
[323016573,1713589842956,-500.0,0.00015068,2]
[323016574,1713589842965,-500.0,0.00015068,2]
[323016575,1713589842975,-1177.3,0.00015068,2]
[323016576,1713589842984,-595.3,0.00015068,2]
[323016577,1713589842993,-689.82,0.00015068,2]
[323016578,1713589843002,-2365.38,0.00015068,2]
[323016579,1713589843012,-429.1823708,0.00015068,2]
[323016580,1713589843022,-500.0,0.00015068,2]
[323016581,1713589843032,-500.0,0.00015068,2]
[323016582,1713589843041,-417.51300825,0.00015068,2]
[323016585,1713589843811,-82.48699175,0.00015068,2]
[323016586,1713589843821,-500.0,0.00015068,2]
[323016587,1713589843832,-500.0,0.00015068,2]
[323016588,1713589843842,-822.656883,0.00015068,2]
[323016589,1713589843875,-473.883117,0.00015068,2]
[323016590,1713589843884,-404.39495885,0.00015068,2]
[323016591,1713589843897,-95.60504115,0.00015068,2]
[323016592,1713589843908,-1418.36371074,0.00015068,2]
[323016593,1713589844848,-404.63791958,0.00015067,2]
[323016594,1713589844858,-48.36208042,0.00015068,2]
[323016595,1713589844871,-286.5467153,0.00015068,2]
[323016596,1713589844883,-865.05749354,0.00015068,2]
[323016597,1713589844893,-790.54958608,0.00015068,2]
[323016623,1713589846143,-155.0,0.00015067,2]
[323016624,1713589846154,-326.88085169,0.00015067,2]
[323016625,1713589846163,-199.15041392,0.00015068,2]
[323016626,1713589846173,-2234.82,0.00015068,2]
[323016627,1713589846183,-500.0,0.00015068,2]
[323016628,1713589846192,-500.0,0.00015068,2]
[323016629,1713589846202,-500.0,0.00015068,2]
[323016630,1713589846211,-500.0,0.00015068,2]
[323016631,1713589846221,-1628.37,0.00015068,2]
[323016632,1713589846230,-785.23,0.00015068,2]
[323016633,1713589846239,-992.17,0.00015068,2]
[323016634,1713589846248,-1511.93354717,0.00015068,2]
[323016635,1713589846271,-131.36645283,0.00015068,2]
[323016636,1713589846280,-391.69547347,0.00015068,2]
[323016638,1713590076907,62035.47796096,0.00028001,120]
[323016639,1713590088337,1037.44794098,0.00028001,120]
[323016640,1713590093833,177.6,0.00010672,2]
[323016641,1713590128369,298.71922923,0.00010672,2]
[323016642,1713590128728,155.0,0.00010672,2]
[323016643,1713590135475,344.24297714,0.00010672,2]
[323016644,1713590136452,179.60225779,0.00010672,2]
[323016645,1713590137125,323.62934981,0.00010672,2]
[323016646,1713590138337,173.00977796,0.00010672,2]
[323016647,1713590141051,376.71560002,0.00010671,2]
[323016648,1713590142685,154.67,0.0001611,15]
[323016649,1713590142777,343.22721767,0.00010671,2]
[323016650,1713590144376,297.6748788,0.00010672,2]
[323016651,1713590148760,155.0,0.00010672,2]
[323016652,1713590149482,211.42468372,0.00010672,2]
[323016653,1713590152328,173.15506208,0.00010672,2]
[323016654,1713590155696,179.60225779,0.00010672,2]
[323016655,1713590157595,195.63277217,0.00010672,2]
[323016656,1713590167004,155.0,0.00010672,2]
[323016657,1713590177697,275.46773419,0.00010672,2]
[323016658,1713590186779,155.0,0.00010672,2]
[323016659,1713590208730,183.63181263,0.00010672,2]
[323016660,1713590480751,561.71,0.0001071,2]
[323016665,1713590608361,177.6,0.0001001,2]
[323016666,1713590618206,154.67,0.0001611,15]
[323016686,1713591007516,541.59,0.00010381,2]
[323016687,1713591013514,162.89104757,0.0001038,2]
[323016700,1713591032103,-207.70305494,0.00011235,2]
[323016701,1713591032113,-404.63791958,0.00011235,2]
[323016702,1713591032122,-313.67030526,0.00011235,2]
[323016703,1713591032131,-210.53465711,0.00011236,2]
[323016704,1713591032141,-155.0,0.00011237,2]
[323016705,1713591032150,-1128.24549352,0.00011237,2]
[323016706,1713591032159,-262.19707218,0.00011237,2]
[323016707,1713591032168,-202.26348816,0.00011237,2]
[323016708,1713591032178,-150.0,0.00011237,2]
[323016709,1713591032187,-161.45924312,0.00011238,2]
[323016710,1713591032196,-162.89104757,0.00011238,2]
[323016711,1713591032205,-155.0,0.00011238,2]
[323016712,1713591032214,-155.0,0.00011238,2]
[323016713,1713591032223,-155.0,0.00011238,2]
[323016714,1713591032233,-155.0,0.00011238,2]
[323016715,1713591032242,-155.0,0.00011238,2]
[323016716,1713591032252,-378.89764759,0.00011239,2]
[323016717,1713591032261,-338.0,0.00011344,2]
[323016718,1713591032270,-188.24559408,0.00012054,2]
[323016719,1713591032279,-499.99,0.00012054,2]
[323016720,1713591032289,-2540.35536187,0.00012083,2]
[323016721,1713591032298,-150.0,0.00012249,2]
[323016722,1713591032308,-201.36,0.00012281,2]
[323016723,1713591032318,-400.0,0.00012291,2]
[323016724,1713591032328,-250.0,0.0001236,2]
[323016725,1713591032338,-210.0,0.00012361,2]
[323016726,1713591032347,-234.58,0.00012367,2]
[323016727,1713591032356,-200.0,0.00012492,2]
[323016728,1713591032365,-211.2,0.00012504,2]
[323016729,1713591032374,-243.4,0.0001251,2]
[323016730,1713591032384,-186.7,0.00012526,2]
[323016731,1713591032393,-395.52,0.00012559,2]
[323016732,1713591032403,-2312.84,0.00012575,2]
[323016733,1713591032412,-395.52,0.00012593,2]
[323016734,1713591032422,-395.52,0.00012628,2]
[323016735,1713591032431,-541.59,0.00012645,2]
[323016736,1713591032440,-3324.38313034,0.00012652,2]
[323016737,1713591032463,-4799.4,0.00012652,2]
[323016738,1713591032579,-393.9,0.00012652,2]
[323016739,1713591032591,-1629.76586371,0.00012652,2]
[323016740,1713591032701,-3476.32708069,0.00012652,2]
[323016741,1713591032712,-6206.2,0.00012652,2]
[323016742,1713591032723,-306.4054214,0.00012652,2]
[323016743,1713591032734,-2769.84850386,0.00012652,2]
[323016744,1713591032743,-395.52,0.00012662,2]
[323016745,1713591032753,-395.52,0.00012697,2]
[323016746,1713591032762,-360.80124276,0.00012731,2]
[323016747,1713591032773,-34.71875724,0.00012731,2]
[323016748,1713591032783,-395.52,0.00012766,2]
[323016749,1713591032792,-395.52,0.000128,2]
[323016750,1713591032801,-153.76,0.00012829,2]
[323016751,1713591032811,-153.76,0.00012834,2]
[323016752,1713591032820,-395.52,0.00012834,2]
[323016753,1713591032830,-153.76,0.00012838,2]
[323016754,1713591032842,-153.76,0.00012843,2]
[323016755,1713591032850,-153.76,0.00012847,2]
[323016756,1713591032860,-153.76,0.00012852,2]
[323016757,1713591032869,-153.76,0.00012857,2]
[323016758,1713591032879,-153.76,0.00012861,2]
[323016759,1713591032889,-153.76,0.00012866,2]
[323016760,1713591032899,-395.52,0.00012869,2]
[323016761,1713591032908,-153.76,0.0001287,2]
[323016762,1713591032918,-153.76,0.00012875,2]
[323016763,1713591032928,-153.76,0.00012879,2]
[323016764,1713591032937,-153.76,0.00012884,2]
[323016765,1713591032947,-153.76,0.00012889,2]
[323016766,1713591032956,-153.76,0.00012893,2]
[323016767,1713591032965,-395.52,0.00012903,2]
[323016768,1713591032974,-164.5,0.00012913,2]
[323016769,1713591032984,-395.52,0.00012938,2]
[323016770,1713591032993,-600.0,0.00012946,2]
[323016771,1713591033002,-193.0,0.00012954,2]
[323016772,1713591033012,-395.52,0.00012972,2]
[323016773,1713591033021,-395.52,0.00013007,2]
[323016774,1713591033031,-395.52,0.00013041,2]
[323016775,1713591033040,-395.52,0.00013075,2]
[323016776,1713591033049,-395.52,0.0001311,2]
[323016777,1713591033059,-395.52,0.00013144,2]
[323016778,1713591033068,-395.52,0.00013179,2]
[323016779,1713591033077,-395.52,0.00013213,2]
[323016780,1713591033086,-224.0,0.00013597,2]
[323016781,1713591033095,-1984.01564288,0.000136,2]
[323016782,1713591033105,-368.1,0.00013699,2]
[323016783,1713591033114,-400.0,0.00013827,2]
[323016784,1713591033124,-211.2,0.00014066,2]
[323016785,1713591033133,-150.0,0.00014277,2]
[323016786,1713591033144,-382.54349145,0.00014313,2]
[323016787,1713591033153,-162.7,0.00014356,2]
[323016788,1713591033162,-162.7,0.00014356,2]
[323016789,1713591033172,-219.84211743,0.00014356,2]
[323016790,1713591033184,-130.44788257,0.00014356,2]
[323016791,1713591033193,-162.7,0.00014356,2]
[323016792,1713591033492,-162.7,0.00014356,2]
[323016793,1713591033508,-350.29,0.00014356,2]
[323016794,1713591033517,-150.0,0.00014356,2]
[323016795,1713591033527,-521.81,0.00014356,2]
[323016796,1713591033535,-350.29,0.00014356,2]
[323016797,1713591033545,-292.05326184,0.00014356,2]
[323016798,1713591033603,-58.23673816,0.00014356,2]
[323016799,1713591033613,-521.81,0.00014356,2]
[323016800,1713591033623,-521.81,0.00014356,2]
[323016801,1713591033632,-521.81,0.00014356,2]
[323016802,1713591033642,-350.29,0.00014378,2]
[323016803,1713591033651,-150.0,0.00014378,2]
[323016804,1713591033660,-521.81,0.00014378,2]
[323016805,1713591033670,-150.0,0.00014478,2]
[323016806,1713591033679,-350.29,0.00014478,2]
[323016807,1713591033688,-521.81,0.00014478,2]
[323016808,1713591033697,-327.5576,0.00014499,2]
[323016809,1713591033706,-600.0,0.00014565,2]
[323016810,1713591033716,-150.29,0.00014629,2]
[323016811,1713591033725,-212.63,0.00014629,2]
[323016812,1713591033735,-150.0,0.00014629,2]
[323016813,1713591033744,-150.0,0.00014629,2]
[323016814,1713591033754,-150.47,0.00014629,2]
[323016815,1713591033763,-150.0,0.00014629,2]
[323016816,1713591033772,-162.52,0.00014629,2]
[323016817,1713591033781,-150.0,0.00014629,2]
[323016818,1713591033791,-439.63,0.00014629,2]
[323016819,1713591033800,-323.36,0.00014629,2]
[323016820,1713591033810,-150.91,0.00014629,2]
[323016821,1713591033819,-518.0,0.00014658,2]
[323016822,1713591033832,-522.0,0.00014658,2]
[323016823,1713591033842,-150.0,0.00014673,2]
[323016824,1713591033853,-150.0,0.00014678,2]
[323016825,1713591033862,-350.29,0.00014678,2]
[323016826,1713591033871,-521.81,0.00014678,2]
[323016827,1713591033882,-150.0,0.00014782,2]
[323016828,1713591033891,-541.59,0.00014909,2]
[323016829,1713591033901,-647.9538,0.00014968,2]
[323016830,1713591033911,-232.8517865,0.00014968,2]
[323016831,1713591033924,-150.2942135,0.00014968,2]
[323016832,1713591033934,-1851.46647707,0.00014968,2]
[323016833,1713591033946,-2592.57686519,0.00014968,2]
[323016849,1713591038144,-425.52525774,0.00014968,2]
[323016850,1713591038154,-1250.0,0.00015,2]
[323016851,1713591038164,-155.87,0.00015058,2]
[323016852,1713591038173,-5000.0,0.00015066,2]
[323016853,1713591038182,-192.6832454,0.00015066,2]
[323016854,1713591038191,-155.0,0.00015066,2]
[323016855,1713591038200,-301.02447591,0.00015066,2]
[323016856,1713591038209,-344.00434686,0.00015066,2]
[323016857,1713591038218,-375.52625505,0.00015067,2]
[323016858,1713591038227,-369.9536,0.00015067,2]
[323016859,1713591038258,-672.77139884,0.00015068,2]
[323016860,1713591038275,-500.0,0.00015068,2]
[323016861,1713591038284,-606.27,0.00015068,2]
[323016862,1713591038293,-500.0,0.00015068,2]
[323016863,1713591038302,-500.0,0.00015068,2]
[323016864,1713591038312,-500.0,0.00015068,2]
[323016865,1713591038321,-500.0,0.00015068,2]
[323016866,1713591038330,-500.0,0.00015068,2]
[323016867,1713591038339,-500.0,0.00015068,2]
[323016868,1713591038349,-500.0,0.00015068,2]
[323016869,1713591038359,-386.37029399,0.00015068,2]
[323016870,1713591038417,-383.29970601,0.00015068,2]
[323016871,1713591038427,-500.0,0.00015068,2]
[323016872,1713591038436,-500.0,0.00015068,2]
[323016873,1713591038447,-500.0,0.00015068,2]
[323016874,1713591038457,-500.0,0.00015068,2]
[323016875,1713591038466,-500.0,0.00015068,2]
[323016876,1713591038476,-401.87529399,0.00015068,2]
[323016877,1713591038488,-220.60470601,0.00015068,2]
[323016878,1713591038497,-551.45,0.00015068,2]
[323016879,1713591038507,-500.0,0.00015068,2]
[323016880,1713591038518,-500.0,0.00015068,2]
[323016881,1713591038528,-500.0,0.00015068,2]
[323016882,1713591038537,-500.0,0.00015068,2]
[323016883,1713591038547,-500.0,0.00015068,2]
[323016884,1713591038557,-500.0,0.00015068,2]
[323016885,1713591038567,-500.0,0.00015068,2]
[323016886,1713591038577,-500.0,0.00015068,2]
[323016887,1713591038587,-500.0,0.00015068,2]
[323016888,1713591038597,-675.91,0.00015068,2]
[323016890,1713591038607,-500.0,0.00015068,2]
[323016891,1713591038616,-500.0,0.00015068,2]
[323016893,1713591038626,-500.0,0.00015068,2]
[323016894,1713591038636,-500.0,0.00015068,2]
[323016895,1713591038647,-500.0,0.00015068,2]
[323016896,1713591038657,-500.0,0.00015068,2]
[323016897,1713591038668,-541.73,0.00015068,2]
[323016898,1713591038679,-500.0,0.00015068,2]
[323016899,1713591038689,-500.0,0.00015068,2]
[323016901,1713591038700,-616.92,0.00015068,2]
[323016903,1713591038709,-500.0,0.00015068,2]
[323016904,1713591038719,-500.0,0.00015068,2]
[323016905,1713591038728,-500.0,0.00015068,2]
[323016906,1713591038737,-562.18,0.00015068,2]
[323016907,1713591038748,-500.0,0.00015068,2]
[323016908,1713591038757,-688.77,0.00015068,2]
[323016909,1713591038768,-500.0,0.00015068,2]
[323016910,1713591038777,-500.0,0.00015068,2]
[323016911,1713591038787,-500.0,0.00015068,2]
[323016912,1713591038796,-500.0,0.00015068,2]
[323016913,1713591038806,-500.0,0.00015068,2]
[323016914,1713591038815,-500.0,0.00015068,2]
[323016915,1713591038824,-500.0,0.00015068,2]
[323016916,1713591038835,-500.0,0.00015068,2]
[323016917,1713591038847,-500.0,0.00015068,2]
[323016918,1713591038856,-500.0,0.00015068,2]